bitfinex/quotes_SOLUSD_20260213
["timestamp","ask_amount","ask_price","bid_price","bid_amount"]
[1770993017624,4.25385464,80.75,80.712,0.5]
[1770993017999,4.25385464,80.74,80.712,0.5]
[1770993018317,41.24,80.756,80.721,0.5]
[1770993018897,4.25385464,80.75,80.721,0.5]
[1770993019309,4.25385464,80.75,80.72,4.25385464]
[1770993019310,111.39829648,80.792,80.72,4.25385464]
[1770993019311,4.25385464,80.79,80.741,0.5]
[1770993019499,0.1,80.8,80.741,0.5]
[1770993019500,0.1,80.8,80.771,0.5]
[1770993019701,4.25385464,80.79,80.771,0.5]
[1770993019906,16.73009484,80.8,80.771,0.5]
[1770993020511,16.73015432,80.8,80.771,0.5]
[1770993020713,16.73015432,80.8,80.751,0.5]
[1770993021022,0.1,80.8,80.77,11.36822016]
[1770993021233,0.1,80.8,80.773,0.5]
[1770993022105,11.46822016,80.8,80.773,0.5]
[1770993022408,11.36822016,80.79,80.761,0.5]
[1770993022723,11.36822016,80.78,80.741,0.5]
[1770993022923,11.36822016,80.77,80.741,0.5]
[1770993023424,12.37990759,80.777,80.741,0.5]
[1770993023925,11.36822016,80.77,80.742,0.5]
[1770993024331,12.37990759,80.777,80.743,0.5]
[1770993024626,11.36822016,80.77,80.743,0.5]
[1770993025126,41.56,80.78,80.75,11.36822016]
[1770993025440,12.37674744,80.797,80.761,0.5]
[1770993025737,11.36822016,80.79,80.761,0.5]
[1770993026131,11.36822016,80.77,80.741,0.5]
[1770993026327,11.36822016,80.76,80.731,0.5]
[1770993026519,11.36822016,80.75,80.711,0.5]
[1770993026917,41.7,80.756,80.721,0.5]
[1770993027135,11.36822016,80.75,80.721,0.5]
[1770993027425,12.38464138,80.746,80.711,0.5]
[1770993027630,11.36822016,80.75,80.711,0.5]
[1770993027832,41.72,80.752,80.721,0.5]
[1770993028012,11.36822016,80.76,80.721,0.5]
[1770993028332,12.38252083,80.759,80.721,0.5]
[1770993028528,11.36822016,80.76,80.721,0.5]
[1770993028715,12.38098775,80.769,80.731,0.5]
[1770993028917,41.74,80.771,80.731,0.5]
[1770993029245,11.36822016,80.75,80.711,0.5]
[1770993029420,12.38405429,80.749,80.711,0.5]
[1770993029624,11.36822016,80.74,80.711,0.5]
[1770993029931,11.36822016,80.74,80.669,155.01023251]
[1770993029932,11.36822016,80.74,80.702,0.5]
[1770993030111,41.86,80.745,80.71,11.36822016]
[1770993030312,41.9,80.747,80.711,0.5]
[1770993030532,41.9,80.752,80.711,0.5]
[1770993030731,41.9,80.752,80.721,0.5]
[1770993030926,11.36822016,80.75,80.721,0.5]
[1770993031114,11.36822016,80.73,80.702,0.5]
[1770993031514,12.38682435,80.731,80.702,0.5]
[1770993031714,11.36822016,80.72,80.682,0.5]
[1770993031936,11.36822016,80.71,80.682,0.5]
[1770993033336,11.36822016,80.72,80.684,0.5]
[1770993033516,11.36822016,80.71,80.684,0.5]
[1770993034120,11.36822016,80.69,80.658,0.5]
[1770993034428,11.36822016,80.69,80.651,0.5]
[1770993034631,11.36822016,80.67,80.631,0.5]
[1770993035034,42.52,80.685,80.651,0.5]
[1770993035421,12.39403103,80.684,80.652,12.89894856]
[1770993035621,42.52,80.685,80.661,0.5]
[1770993035820,11.36822016,80.7,80.652,43.39631998]
[1770993035821,12.39019192,80.709,80.671,0.5]
[1770993036047,11.36822016,80.71,80.671,0.5]
[1770993036339,49.52593132,80.766,80.652,97.60940677]
[1770993036340,11.36822016,80.73,80.691,0.5]
[1770993036918,92.86890624,80.759,80.659,68.14]
[1770993036919,42.66,80.746,80.7,11.3883681]
[1770993037123,43.33882291,80.759,80.711,0.5]
[1770993037319,43.33882291,80.759,80.723,0.5]
[1770993037320,12.38252083,80.759,80.723,0.5]
[1770993037538,12.38193352,80.763,80.731,0.5]
[1770993037843,12.38130312,80.767,80.731,0.5]
[1770993038339,12.37991482,80.776,80.741,0.5]
[1770993039130,11.3883681,80.82,80.722,43.35868783]
[1770993039131,12.37639079,80.799,80.761,0.5]
[1770993039441,11.4883681,80.8,80.763,0.5]
[1770993039742,0.1,80.8,80.771,0.5]
[1770993039939,49.46187766,80.871,80.771,0.5]
[1770993039940,11.3883681,80.85,80.791,0.45628114]
[1770993040143,49.44376437,80.9,80.831,0.45628114]
[1770993040144,12.36614309,80.866,80.831,0.45628114]
[1770993040335,11.3883681,80.84,80.809,0.45628114]
[1770993040540,11.3883681,80.84,80.801,0.45628114]
[1770993040840,11.3883681,80.84,80.771,68.26]
[1770993040841,0.2,80.829,80.791,0.45628114]
[1770993041025,11.3883681,80.81,80.78,0.45628114]
[1770993041226,11.3883681,80.79,80.767,0.45628114]
[1770993041745,12.37792273,80.789,80.751,0.45628114]
[1770993041943,12.37792273,80.789,80.75,23.7721818]
[1770993041944,11.3883681,80.8,80.771,0.45628114]
[1770993042140,11.3883681,80.81,80.771,0.45628114]
[1770993042447,11.3883681,80.8,80.761,0.45628114]
[1770993043153,11.3883681,80.8,80.771,0.45628114]
[1770993043335,12.37639079,80.799,80.771,0.45628114]
[1770993043530,11.3883681,80.8,80.773,0.45628114]
[1770993043730,12.37485923,80.809,80.773,0.45628114]
[1770993044123,12.37485923,80.809,80.781,0.45628114]
[1770993044323,43.02,80.833,80.791,0.45628114]
[1770993044528,12.37072591,80.836,80.801,0.45628114]
[1770993044933,11.3883681,80.83,80.791,0.45628114]
[1770993045133,11.3883681,80.82,80.781,0.45628114]
[1770993045338,11.3883681,80.83,80.791,0.45628114]
[1770993045539,54.4483681,80.85,80.811,0.45628114]
[1770993045747,11.3883681,80.84,80.801,0.45628114]
[1770993046229,12.36950175,80.844,80.811,0.45628114]
[1770993046561,12.36950175,80.844,80.81,11.3883681]
[1770993046562,12.36862607,80.85,80.821,0.45628114]
[1770993047027,11.4883681,80.86,80.821,0.45628114]
[1770993047227,0.1,80.86,80.821,0.45628114]
[1770993047428,4.39733327,80.845,80.833,0.45628114]
[1770993047645,0.1,80.86,80.832,12.37133808]
[1770993047831,0.1,80.86,80.85,11.3883681]
[1770993048733,0.1,80.89,80.85,11.3883681]
[1770993049048,0.1,80.89,80.86,11.3883681]
[1770993049249,0.1,80.89,80.88,11.3883681]
[1770993049425,11.3883681,80.94,80.911,12.35925893]
[1770993049627,6.46533942,80.947,80.911,12.35925893]
[1770993049830,6.46533942,80.947,80.832,49.48535233]
[1770993049831,11.3883681,80.93,80.892,12.36216189]
[1770993050044,191.40764887,80.979,80.91,11.3883681]
[1770993050045,11.3883681,80.95,80.91,11.3883681]
[1770993050238,11.3883681,80.95,80.892,12.36216189]
[1770993050239,11.3883681,80.96,80.92,11.3883681]
[1770993050445,135.75660429,80.979,80.9,11.3883681]
[1770993050446,11.3883681,80.94,80.9,11.3883681]
[1770993050643,43.18,80.947,80.892,12.36216189]
[1770993050850,11.3883681,80.93,80.89,11.3883681]
[1770993051144,11.3883681,80.93,80.85,49.47412045]
[1770993051145,11.3883681,80.9,80.86,11.3883681]
[1770993051349,0.47658618,80.909,80.86,11.3883681]
[1770993051553,0.47658618,80.899,80.86,11.3883681]
[1770993051855,0.47658618,80.889,80.85,11.3883681]
[1770993052352,0.47658618,80.869,80.83,11.3883681]
[1770993052548,0.47658618,80.869,80.84,11.3883681]
[1770993052943,0.47658618,80.869,80.83,11.3883681]
[1770993053141,0.47658618,80.859,80.823,12.37259107]
[1770993053533,0.47658618,80.859,80.83,11.3883681]
[1770993053758,12.36736006,80.858,80.83,11.3883681]
[1770993053941,12.36736006,80.858,80.81,30.93673772]
[1770993053942,0.47658618,80.849,80.81,11.84464924]
[1770993054140,0.47658618,80.849,80.81,11.3883681]
[1770993054453,0.47658618,80.839,80.803,12.37577812]
[1770993054652,0.47658618,80.829,80.79,11.3883681]
[1770993055042,0.47658618,80.829,80.8,11.3883681]
[1770993055351,0.47658618,80.829,80.791,12.37761631]
[1770993055556,0.47658618,80.829,80.8,11.3883681]
[1770993055749,12.37026682,80.839,80.801,12.37608445]
[1770993056050,30.91840015,80.858,80.821,0.45628114]
[1770993056241,11.3883681,80.85,80.811,0.45628114]
[1770993056437,11.3883681,80.85,80.81,11.3883681]
[1770993056438,11.3883681,80.83,80.79,11.3883681]
[1770993056633,11.3883681,80.82,80.791,12.37761631]
[1770993056835,11.3883681,80.82,80.774,68.98]
[1770993056836,11.3883681,80.82,80.78,11.3883681]
[1770993057430,11.3883681,80.85,80.811,0.45628114]
[1770993057633,11.3883681,80.85,80.82,11.3883681]
[1770993057850,12.36781893,80.855,80.822,0.45628114]
[1770993058352,0.47658618,80.856,80.83,11.3883681]
[1770993058736,12.36781893,80.855,80.822,0.45628114]
[1770993058937,0.47658618,80.839,80.805,12.37535881]
[1770993059544,0.47658618,80.839,80.8,24.22082627]
[1770993059742,0.47658618,80.839,80.81,11.3883681]
[1770993059941,0.47658618,80.837,80.8,23.76454513]
[1770993060241,0.47658618,80.837,80.801,0.45628114]
[1770993060444,0.47658618,80.847,80.811,0.45628114]
[1770993060645,0.48555586,80.877,80.84,11.3883681]
[1770993060952,0.48555586,80.849,80.795,12.37689223]
[1770993061155,0.48555586,80.829,80.795,12.37689223]
[1770993061459,0.48555586,80.855,80.82,11.88563715]
[1770993061656,0.48555586,80.855,80.795,12.37689223]
[1770993061657,0.48555586,80.865,80.84,11.3883681]
[1770993061866,0.48555586,80.872,80.84,11.3883681]
[1770993062051,49.42633146,80.929,80.821,12.37302186]
[1770993062052,12.3585664,80.916,80.861,0.49726905]
[1770993062253,11.3883681,80.91,80.872,0.49726905]
[1770993062447,0.48555586,80.879,80.821,43.30557651]
[1770993062748,0.48555586,80.859,80.822,0.49726905]
[1770993062950,11.3883681,80.85,80.809,0.49726905]
[1770993063265,11.87392396,80.86,80.82,11.88563715]
[1770993063463,0.48555586,80.859,80.82,11.88563715]
[1770993063860,0.48555586,80.849,80.811,12.37455296]
[1770993064065,0.48555586,80.839,80.801,12.37608445]
[1770993064261,0.48555586,80.839,80.767,5.36086188]
[1770993064262,0.48555586,80.829,80.791,12.37761631]
[1770993064462,0.48555586,80.829,80.792,0.49726905]
[1770993064770,0.48555586,80.819,80.786,12.37823574]
[1770993065066,0.48555586,80.819,80.787,0.49726905]
[1770993065455,11.3883681,80.84,80.791,0.49726905]
[1770993065781,11.3883681,80.83,80.792,12.37746311]
[1770993065959,11.3883681,80.83,80.793,0.49726905]
[1770993066163,11.3883681,80.82,80.793,0.49726905]
[1770993066362,0.48555586,80.809,80.77,0.69726905]
[1770993066870,0.48555586,80.819,80.772,0.49726905]
[1770993067049,43.30129037,80.829,80.771,12.38068118]
[1770993067050,12.37179725,80.829,80.781,0.49726905]
[1770993067255,0.48555586,80.819,80.781,0.49726905]
[1770993067664,11.3883681,80.81,80.771,12.87795023]
[1770993067857,11.3883681,80.81,80.772,0.49726905]
[1770993068367,0.48555586,80.839,80.781,0.49726905]
[1770993068566,11.3883681,80.86,80.811,0.49726905]
[1770993068867,11.3883681,80.86,80.81,11.3883681]
[1770993068868,0.48555586,80.859,80.81,11.3883681]
[1770993069046,0.48555586,80.859,80.82,11.3883681]
[1770993069663,0.48555586,80.869,80.82,11.3883681]
[1770993069865,0.48555586,80.859,80.821,12.37302186]
[1770993070064,0.48555586,80.867,80.82,11.3883681]
[1770993070257,0.48555586,80.867,80.801,92.82063339]
[1770993070577,49.42461812,80.932,80.84,11.3883681]
[1770993070578,0.48555586,80.889,80.84,11.3883681]
[1770993070871,0.48555586,80.869,80.831,0.47931712]
[1770993071264,0.48555586,80.869,80.816,69.54]
[1770993071265,0.48555586,80.899,80.851,0.47931712]
[1770993071678,0.48555586,80.899,80.85,11.86768522]
[1770993071876,0.48555586,80.899,80.861,12.36690122]
[1770993072180,0.48555586,80.889,80.841,12.36996078]
[1770993072381,0.48555586,80.879,80.842,0.47931712]
[1770993072949,0.48555586,80.869,80.831,12.37149113]
[1770993073154,0.48555586,80.849,80.807,12.37516551]
[1770993073365,11.3883681,80.84,80.807,12.37516551]
[1770993073567,0.48555586,80.839,80.807,12.37516551]
[1770993073759,0.48555586,80.829,80.787,0.47931712]
[1770993074057,11.3883681,80.88,80.777,12.37976156]
[1770993074058,0.48555586,80.818,80.777,12.37976156]
[1770993074258,11.87392396,80.79,80.77,0.2]
[1770993074456,4.61729252,80.835,80.77,0.2]
[1770993074457,0.48555586,80.813,80.772,0.47931712]
[1770993074762,0.48555586,80.789,80.749,12.38405429]
[1770993075173,0.48555586,80.779,80.74,12.38543472]
[1770993075491,0.48555586,80.769,80.735,12.38614802]
[1770993075775,0.48555586,80.769,80.711,69.72]
[1770993075776,0.48555586,80.739,80.676,0.47931712]
[1770993076075,0.48555586,80.739,80.693,0.47931712]
[1770993076254,11.3883681,80.73,80.693,0.47931712]
[1770993076454,4.61729252,80.789,80.721,0.47931712]
[1770993076689,0.48555586,80.759,80.721,0.47931712]
[1770993076864,0.48555586,80.739,80.693,0.47931712]
[1770993077353,11.3883681,80.73,80.693,0.47931712]
[1770993077558,0.48555586,80.729,80.692,12.39280226]
[1770993077970,0.48555586,80.729,80.683,0.47931712]
[1770993078172,0.48555586,80.729,80.682,43.38018392]
[1770993078173,11.3883681,80.75,80.701,0.47931712]
[1770993078355,0.48555586,80.739,80.7,11.3883681]
[1770993078684,0.48555586,80.739,80.701,0.47931712]
[1770993078977,17.75666831,80.75,80.71,18.23598543]
[1770993079274,0.48555586,80.739,80.698,0.47931712]
[1770993079589,0.48555586,80.729,80.685,0.47931712]
[1770993079784,0.48555586,80.719,80.682,12.39433826]
[1770993080273,17.75666831,80.75,80.701,0.47931712]
[1770993080480,0.48555586,80.754,80.711,0.47931712]
[1770993080679,0.48555586,80.754,80.682,204.50658137]
[1770993080680,17.75666831,80.77,80.731,0.47931712]
[1770993080857,0.48555586,80.777,80.731,0.47931712]
[1770993081056,0.48555586,80.789,80.751,0.47931712]
[1770993081357,0.48555586,80.805,80.761,0.47931712]
[1770993081552,0.48555586,80.805,80.77,17.75666831]
[1770993081753,0.48555586,80.805,80.753,69.98]
[1770993081754,0.48555586,80.818,80.759,0.47931712]
[1770993081956,17.75666831,80.82,80.772,0.47931712]
[1770993082272,17.75666831,80.82,80.771,43.33238414]
[1770993082273,17.75666831,80.83,80.79,18.23598543]
[1770993082456,0.48555586,80.819,80.749,0.47931712]
[1770993082777,0.48555586,80.809,80.77,17.75666831]
[1770993082973,0.48555586,80.821,80.78,18.23598543]
[1770993083172,30.1283125,80.83,80.79,17.75666831]
[1770993083351,0.48555586,80.829,80.781,0.47931712]
[1770993083673,0.48555586,80.809,80.77,17.75666831]
[1770993084067,17.75666831,80.82,80.78,17.75666831]
[1770993084260,17.75666831,80.83,80.79,17.75666831]
[1770993084576,0.48555586,80.847,80.801,0.47931712]
[1770993084878,0.48555586,80.847,80.8,17.75666831]
[1770993084879,0.48555586,80.839,80.8,17.75666831]
[1770993085171,12.36873678,80.849,80.801,0.47931712]
[1770993085378,0.48555586,80.848,80.801,0.47931712]
[1770993085573,0.48555586,80.848,80.81,17.75666831]
[1770993085775,0.48555586,80.848,80.778,5.36086188]
[1770993085776,0.48555586,80.872,80.83,17.75666831]
[1770993085979,0.48555586,80.895,80.851,0.47931712]
[1770993086175,0.48555586,80.879,80.841,12.36996078]
[1770993086385,0.48555586,80.879,80.827,0.47931712]
[1770993086386,0.48555586,80.859,80.821,30.93239909]
[1770993086562,0.48555586,80.859,80.821,31.41171621]
[1770993086883,0.48555586,80.859,80.814,12.37409359]
[1770993087085,0.48555586,80.869,80.821,0.47931712]
[1770993087377,43.26970625,80.888,80.791,0.47931712]
[1770993087378,0.48555586,80.839,80.791,0.47931712]
[1770993087580,0.48555586,80.839,80.8,17.75666831]
[1770993087973,0.48555586,80.819,80.783,70.28]
[1770993088170,17.75666831,80.8,80.76,17.75666831]
[1770993088372,0.48555586,80.789,80.73,0.47931712]
[1770993088583,0.48555586,80.779,80.74,17.75666831]
[1770993089163,0.48555586,80.769,80.73,17.75666831]
[1770993089693,0.48555586,80.779,80.73,17.75666831]
[1770993090178,0.48555586,80.769,80.72,17.75666831]
[1770993090377,12.3796083,80.778,80.676,49.58057886]
[1770993090378,0.48555586,80.774,80.678,0.47931712]
[1770993090581,0.48555586,80.769,80.721,0.47931712]
[1770993090769,44.14,80.776,80.71,17.75666831]
[1770993090770,17.75666831,80.75,80.71,17.75666831]
[1770993090973,17.75666831,80.74,80.7,17.75666831]
[1770993091173,0.45580389,80.739,80.694,0.47931712]
[1770993091588,18.2124722,80.72,80.687,70.44]
[1770993091880,0.45580389,80.729,80.69,17.75666831]
[1770993092083,44.18,80.755,80.677,12.39510641]
[1770993092084,0.45580389,80.719,80.677,12.39510641]
[1770993092273,0.45580389,80.717,80.671,12.39602831]
[1770993092475,0.45580389,80.709,80.671,12.39602831]
[1770993092784,17.75666831,80.71,80.665,12.39685006]
[1770993092983,43.36083648,80.718,80.64,17.95666831]
[1770993092984,17.75666831,80.68,80.64,17.95666831]
[1770993093285,0.45580389,80.679,80.641,12.40057461]
[1770993093482,17.75666831,80.69,80.65,18.23598543]
[1770993093783,18.2124722,80.69,80.65,0.47931712]
[1770993093987,17.75666831,80.67,80.641,12.40057461]
[1770993094184,0.45580389,80.669,80.64,12.60066612]
[1770993094377,17.75666831,80.69,80.651,0.47931712]
[1770993095076,17.75666831,80.71,80.671,0.47931712]
[1770993095271,17.75666831,80.7,80.66,17.75666831]
[1770993095470,0.45580389,80.699,80.66,17.75666831]
[1770993095670,0.45580389,80.699,80.64,43.60265024]
[1770993095671,0.45580389,80.699,80.65,17.75666831]
[1770993095871,0.45580389,80.699,80.66,17.75666831]
[1770993096192,17.75666831,80.7,80.66,17.75666831]
[1770993096377,0.45771941,80.698,80.652,12.39894856]
[1770993096884,0.45771941,80.698,80.66,18.22757224]
[1770993097186,0.45771941,80.698,80.66,0.45338972]
[1770993097390,17.77418252,80.71,80.67,17.77418252]
[1770993097571,17.77418252,80.71,80.671,0.45338972]
[1770993097890,0.45771941,80.699,80.652,43.39631998]
[1770993098390,17.77418252,80.69,80.652,12.39894856]
[1770993098589,17.77418252,80.7,80.661,0.45338972]
[1770993098892,0.45771941,80.689,80.647,0.45338972]
[1770993099071,11.40090469,80.71,80.661,0.45338972]
[1770993099271,11.40090469,80.72,80.681,0.45338972]
[1770993099474,0.45771941,80.728,80.681,0.45338972]
[1770993099882,44.26,80.748,80.649,5.36086188]
[1770993099883,11.40090469,80.76,80.711,0.45338972]
[1770993100098,0.45771941,80.769,80.72,11.40090469]
[1770993100276,11.40090469,80.75,80.711,12.38988489]
[1770993100477,0.45771941,80.749,80.706,12.39064682]
[1770993100678,0.45771941,80.739,80.701,12.39142018]
[1770993101490,11.40090469,80.75,80.71,11.40090469]
[1770993101686,0.45771941,80.757,80.72,11.40090469]
[1770993101887,11.40090469,80.76,80.72,11.40090469]
[1770993102288,11.40090469,80.76,80.721,12.38834999]
[1770993102589,0.45771941,80.758,80.721,12.38834999]
[1770993102790,0.45771941,80.758,80.73,11.40090469]
[1770993102973,0.45771941,80.758,80.721,12.38834999]
[1770993103486,0.45771941,80.758,80.72,17.74721415]
[1770993103680,0.45771941,80.739,80.703,83.0709983]
[1770993104287,17.74721415,80.75,80.71,17.74721415]
[1770993104492,0.45771941,80.749,80.71,17.74721415]
[1770993104872,0.45771941,80.761,80.73,17.74721415]
[1770993105072,12.83784257,80.775,80.731,0.45338972]
[1770993105284,17.74721415,80.78,80.741,0.45338972]
[1770993105479,17.74721415,80.78,80.703,275.13325123]
[1770993105480,12.3766228,80.798,80.76,17.74721415]
[1770993105872,17.74721415,80.79,80.751,0.45338972]
[1770993106087,0.45771941,80.789,80.75,17.74721415]
[1770993106284,44.32,80.816,80.726,0.45338972]
[1770993106285,0.45771941,80.769,80.726,0.45338972]
[1770993106506,0.45771941,80.759,80.727,12.38742923]
[1770993106681,0.45771941,80.759,80.73,17.74721415]
[1770993106882,44.77771941,80.782,80.75,17.74721415]
[1770993107187,0.45771941,80.779,80.74,17.74721415]
[1770993107385,17.74721415,80.79,80.75,17.74721415]
[1770993107691,0.45771941,80.779,80.74,17.74721415]
[1770993108208,0.45771941,80.801,80.77,17.74721415]
[1770993108393,0.45771941,80.85,80.79,17.74721415]
[1770993108577,0.45771941,80.829,80.79,17.74721415]
[1770993109074,0.45771941,80.856,80.82,17.74721415]
[1770993109274,0.45771941,80.869,80.789,5.36086188]
[1770993109472,0.45771941,80.849,80.81,17.74721415]
[1770993109695,44.36,80.875,80.79,70.74]
[1770993109696,44.36,80.875,80.83,18.20060387]
[1770993109902,0.45771941,80.869,80.83,17.74721415]
[1770993110284,0.45771941,80.867,80.83,17.74721415]
[1770993110502,0.45771941,80.867,80.831,12.37149113]
[1770993110692,44.38,80.898,80.831,12.37149113]
[1770993110693,0.45771941,80.889,80.85,17.74721415]
[1770993111380,0.45771941,80.889,80.84,17.74721415]
[1770993111581,0.45771941,80.879,80.84,17.74721415]
[1770993111902,4.61729252,80.915,80.831,43.30021896]
[1770993111903,12.35651002,80.929,80.871,0.45338972]
[1770993112080,0.45771941,80.919,80.88,17.74721415]
[1770993112396,12.35651002,80.929,80.891,12.36231471]
[1770993112599,0.45771941,80.909,80.873,30.9124432]
[1770993112801,0.45771941,80.909,80.871,12.36537201]
[1770993113096,0.45771941,80.919,80.88,17.74721415]
[1770993113487,0.1,80.93,80.901,0.45338972]
[1770993113782,0.45771941,80.928,80.89,17.74721415]
[1770993113986,18.20493356,80.92,80.881,0.45338972]
[1770993114178,0.45771941,80.92,80.89,17.74721415]
[1770993114380,0.1,80.93,80.901,0.45338972]
[1770993114886,0.45771941,80.959,80.92,17.74721415]
[1770993115087,17.74721415,80.95,80.911,0.45338972]
[1770993115291,0.45771941,80.949,80.91,17.74721415]
[1770993115486,0.45771941,80.919,80.883,12.36345811]
[1770993115788,0.45771941,80.919,80.851,4.61729252]
[1770993115789,0.45771941,80.939,80.9,17.74721415]
[1770993115988,0.45771941,80.959,80.92,17.74721415]
[1770993116385,0.45771941,80.979,80.932,12.35605199]
[1770993116586,0.45771941,80.978,80.933,0.45338972]
[1770993116781,0.45771941,80.959,80.916,70.68]
[1770993116981,0.45771941,80.939,80.9,17.74721415]
[1770993117205,0.45771941,80.939,80.88,70.64]
[1770993117206,0.45771941,80.919,80.87,18.20060387]
[1770993117498,17.74721415,80.92,80.88,17.74721415]
[1770993117882,17.74721415,80.93,80.89,18.20060387]
[1770993118085,0.45771941,80.949,80.901,0.45338972]
[1770993118599,0.45771941,80.949,80.911,12.35925893]
[1770993119002,0.45771941,80.949,80.92,17.74721415]
[1770993119202,0.45771941,80.949,80.911,12.35925893]
[1770993119498,0.45771941,80.959,80.92,17.74721415]
[1770993119697,0.45771941,80.959,80.911,43.25740627]
[1770993120002,0.45771941,80.959,80.92,17.74721415]
[1770993120494,0.45771941,80.926,80.871,0.45338972]
[1770993120682,17.74721415,80.93,80.89,17.74721415]
[1770993120883,17.74721415,80.92,80.88,18.22357053]
[1770993121088,0.47726512,80.979,80.901,0.47635638]
[1770993121287,0.47726512,80.949,80.901,0.47635638]
[1770993121486,43.221082,80.979,80.878,0.47635638]
[1770993121487,0.47726512,80.929,80.878,0.47635638]
[1770993121802,0.47726512,80.929,80.88,17.74721415]
[1770993122011,0.47726512,80.919,80.88,18.22357053]
[1770993122192,17.74721415,80.94,80.891,0.47635638]
[1770993122386,0.47726512,80.929,80.857,0.47635638]
[1770993122584,17.74721415,80.94,80.901,0.47635638]
[1770993122807,49.39552229,80.979,80.881,12.36384317]
[1770993122808,0.47726512,80.959,80.92,17.74721415]
[1770993122987,12.35040571,80.969,80.93,17.74721415]
[1770993123188,0.47726512,80.96,80.91,17.74721415]
[1770993123387,0.47726512,80.959,80.92,17.74721415]
[1770993123782,17.74721415,80.95,80.91,18.22357053]
[1770993123984,0.47726512,80.963,80.93,17.74721415]
[1770993124189,0.47726512,80.963,80.921,0.47635638]
[1770993124488,0.47726512,80.973,80.932,12.35605199]
[1770993124685,0.47726512,80.949,80.9,18.22357053]
[1770993124885,0.47726512,80.939,80.89,17.74721415]
[1770993125086,0.47726512,80.919,80.87,17.74721415]
[1770993125308,0.47726512,80.899,80.862,12.36674828]
[1770993125692,17.74721415,80.88,80.84,17.74721415]
[1770993125992,0.47726512,80.879,80.841,12.36996078]
[1770993126192,0.47726512,80.869,80.83,17.74721415]
[1770993126395,0.47726512,80.869,80.824,12.84891898]
[1770993126600,0.47726512,80.849,80.81,17.74721415]
[1770993126798,0.47726512,80.849,80.82,17.74721415]
[1770993127001,0.47726512,80.849,80.811,12.37455296]
[1770993127395,12.36268919,80.889,80.841,0.47635638]
[1770993127723,17.74721415,80.89,80.85,17.74721415]
[1770993127921,0.47726512,80.889,80.85,17.74721415]
[1770993128121,18.22447927,80.87,80.83,17.74721415]
[1770993128416,0.47726512,80.859,80.82,17.74721415]
[1770993128619,0.47726512,80.857,80.821,12.37302186]
[1770993128921,12.84125874,80.881,80.85,11.34536219]
[1770993129227,0.47726512,80.889,80.85,11.34536219]
[1770993129712,0.47726512,80.859,80.82,11.34536219]
[1770993129923,0.47726512,80.859,80.83,11.34536219]
[1770993130124,11.82262731,80.87,80.83,11.34536219]
[1770993130323,0.47726512,80.869,80.83,11.34536219]
[1770993130501,0.47726512,80.869,80.791,4.61729252]
[1770993130502,0.47726512,80.857,80.807,12.37516551]
[1770993130705,11.34536219,80.85,80.81,11.34536219]
[1770993130908,0.47726512,80.849,80.81,11.34536219]
[1770993131301,0.47726512,80.849,80.82,11.34536219]
[1770993131519,0.47726512,80.839,80.79,11.34536219]
[1770993131827,0.47726512,80.855,80.82,11.34536219]
[1770993132010,11.34536219,80.85,80.81,11.34536219]
[1770993132510,0.47726512,80.849,80.802,43.3157595]
[1770993132713,0.47726512,80.849,80.81,11.34536219]
[1770993133202,98.87490914,80.911,80.802,43.3157595]
[1770993133203,11.34536219,80.86,80.82,11.34536219]
[1770993133406,0.47726512,80.859,80.82,11.34536219]
[1770993133602,0.47726512,80.858,80.82,11.34536219]
[1770993133813,0.47726512,80.858,80.811,0.47635638]
[1770993134400,0.47726512,80.839,80.802,12.37593128]
[1770993134597,0.47726512,80.837,80.794,43.3200485]
[1770993135008,12.37041985,80.838,80.794,12.37715671]
[1770993135009,0.47726512,80.829,80.794,12.37715671]
[1770993135323,11.82262731,80.86,80.82,11.34536219]
[1770993135632,12.36093943,80.9,80.82,11.34536219]
[1770993135633,0.47726512,80.899,80.851,0.47635638]
[1770993135809,0.47726512,80.899,80.82,11.34536219]
[1770993135810,0.47726512,80.899,80.86,11.34536219]
[1770993136119,0.47726512,80.889,80.85,11.34536219]
[1770993136538,0.47726512,80.904,80.87,11.34536219]
[1770993136706,0.47726512,80.919,80.89,11.34536219]
[1770993136904,0.47726512,80.917,80.881,12.36384317]
[1770993137106,0.47726512,80.899,80.861,12.36690122]
[1770993137314,0.47726512,80.899,80.87,11.34536219]
[1770993137613,0.47726512,80.899,80.85,11.34536219]
[1770993137815,0.47726512,80.899,80.86,11.34536219]
[1770993138129,0.47726512,80.889,80.85,11.34536219]
[1770993138345,0.47726512,80.879,80.842,12.36980777]
[1770993138524,44.58,80.905,80.831,12.37149113]
[1770993138525,0.47726512,80.869,80.831,12.37149113]
[1770993138720,12.36420623,80.879,80.85,11.34536219]
[1770993138925,0.47726512,80.869,80.815,0.47635638]
[1770993139228,11.34536219,80.89,80.85,11.34536219]
[1770993139413,12.36275489,80.889,80.86,11.34536219]